bitfinex/quotes_SOLUSD_20251007
["timestamp","ask_amount","ask_price","bid_price","bid_amount"]
[1759842837185,33.93456354,230.98,230.97,30.74]
[1759842837386,33.93456354,230.98,230.97,31.41]
[1759842837588,33.93456354,230.98,230.97,30.74]
[1759842837797,13.13456354,230.98,230.97,30.74]
[1759842838704,16.96630367,230.98,230.97,30.74]
[1759842838882,16.27630367,230.98,230.97,30.74]
[1759842839295,13.13456354,230.98,230.97,30.74]
[1759842839608,16.27630367,230.98,230.97,30.74]
[1759842840382,16.96630367,230.98,230.97,0.2]
[1759842840705,16.96630367,230.98,230.97,30.74]
[1759842840902,13.82456354,230.98,230.97,30.74]
[1759842841110,16.27630367,230.98,230.97,30.74]
[1759842841306,16.96630367,230.98,230.97,30.74]
[1759842842702,16.27630367,230.98,230.97,30.74]
[1759842842892,21.29568283,230.98,230.97,30.74]
[1759842844396,17.4639427,230.98,230.97,30.74]
[1759842844608,21.29568283,230.98,230.97,30.74]
[1759842845200,13.13456354,230.98,230.97,30.74]
[1759842845419,13.13456354,230.98,230.97,31.41]
[1759842846299,4.32846739,231.03,230.97,31.41]
[1759842846501,10.87647521,231.02,230.98,0.67]
[1759842847497,18.34692531,231.02,230.99,0.67]
[1759842847709,18.34692531,231.02,230.99,31.21]
[1759842847909,18.34692531,231.02,231.0,30.54]
[1759842848122,18.34692531,231.02,231.01,0.67]
[1759842848123,10.87647521,231.02,231.01,0.67]
[1759842849006,0.69,231.13,231.01,0.67]
[1759842849202,20.8,231.1,231.01,0.67]
[1759842849511,4.3270136,231.11,231.01,0.67]
[1759842849712,0.69,231.16,231.01,0.67]
[1759842850016,20.8,231.13,231.01,0.67]
[1759842850315,3.14174013,231.12,231.01,0.67]
[1759842850496,2.25665883,231.15,231.02,30.58]
[1759842851617,6.58286872,231.15,231.02,30.58]
[1759842851805,0.69,231.14,231.03,30.64]
[1759842852003,23.05665883,231.15,231.03,30.64]
[1759842852613,10.87647521,231.14,231.03,30.64]
[1759842852821,2.25665883,231.15,231.06,20.8]
[1759842853022,0.69,231.19,231.06,20.8]
[1759842853335,10.87647521,231.18,231.06,20.8]
[1759842853624,10.87647521,231.16,231.07,30.68]
[1759842853831,10.87647521,231.16,231.08,30.68]
[1759842853832,10.87647521,231.14,231.08,30.68]
[1759842854029,20.8,231.17,231.09,30.68]
[1759842854196,20.8,231.17,231.1,30.68]
[1759842854696,10.87647521,231.16,231.1,30.68]
[1759842854912,11.56647521,231.16,231.1,30.68]
[1759842855638,10.87647521,231.14,231.1,30.68]
[1759842856722,11.56647521,231.14,231.1,30.68]
[1759842857344,0.69,231.13,231.1,30.68]
[1759842857653,10.87647521,231.14,231.1,30.68]
[1759842857851,15.89248316,231.16,231.1,30.68]
[1759842858057,25.81600795,231.16,231.1,30.68]
[1759842859422,15.20285748,231.14,231.1,30.68]
[1759842859622,0.69,231.13,231.1,30.68]
[1759842860242,15.20285748,231.14,231.1,30.68]
[1759842860243,0.69,231.12,231.1,30.68]
[1759842860630,15.89341908,231.11,231.1,30.68]
[1759842862227,10.87647521,231.11,231.1,30.68]
[1759842863653,15.20341908,231.11,231.1,30.68]
[1759842864453,15.88341908,231.11,231.1,30.68]
[1759842865552,0.68,231.17,231.1,30.68]
[1759842865761,20.8,231.15,231.1,30.68]
[1759842866141,0.68,231.15,231.1,30.68]
[1759842866341,0.68,231.14,231.1,30.68]
[1759842866932,34.81821534,231.16,231.1,30.68]
[1759842866933,31.67647521,231.16,231.1,30.68]
[1759842867137,4.32619511,231.15,231.1,30.68]
[1759842868241,2.25610611,231.19,231.1,30.68]
[1759842868439,4.32452309,231.24,231.13,20.8]
[1759842868644,2.25555065,231.22,231.13,20.8]
[1759842869159,6.58048017,231.22,231.13,20.8]
[1759842869456,6.58048017,231.22,231.11,12.98111248]
[1759842869659,6.58048017,231.22,231.1,51.48]
[1759842870147,6.58048017,231.22,231.1,64.46111248]
[1759842871139,7.26048017,231.22,231.1,64.46111248]
[1759842871438,7.26048017,231.22,231.1,51.48]
[1759842871439,2.25555065,231.22,231.1,51.48]
[1759842871650,15.20061254,231.26,231.1,51.48]
[1759842871933,17.45596226,231.26,231.14,20.8]
[1759842874758,17.45596226,231.26,231.13,12.97998918]
[1759842874759,0.66,231.25,231.13,12.97998918]
[1759842874936,0.66,231.25,231.13,20.8]
[1759842875555,20.8,231.23,231.12,12.97998918]
[1759842875757,21.46,231.23,231.12,12.97998918]
[1759842875943,21.46,231.23,231.1,51.48]
[1759842876145,4.32488539,231.22,231.1,51.48]
[1759842877541,20.8,231.23,231.1,51.48]
[1759842877743,2.25534972,231.26,231.14,20.8]
[1759842878339,2.25534972,231.26,231.15,20.8]
[1759842878654,0.1,231.27,231.16,30.64]
[1759842878845,4.42396032,231.27,231.16,30.64]
[1759842879160,4.42402654,231.27,231.16,30.64]
[1759842882143,5.12402654,231.27,231.16,30.64]
[1759842882547,0.7,231.26,231.16,30.64]
[1759842883065,4.32432432,231.25,231.16,30.64]
[1759842884064,20.8,231.22,231.16,30.64]
[1759842884440,0.7,231.23,231.16,30.64]
[1759842885151,4.32488539,231.22,231.16,30.64]
[1759842885838,0.7,231.24,231.16,30.64]
[1759842887270,4.32469835,231.23,231.16,30.64]
[1759842890364,0.7,231.22,231.16,30.64]
[1759842891973,4.32507244,231.21,231.16,30.64]
[1759842892683,5.02507244,231.21,231.16,30.64]
[1759842892871,4.32507244,231.21,231.16,30.64]
[1759842893767,5.01507244,231.21,231.16,30.64]
[1759842894076,5.01539077,231.2,231.16,30.64]
[1759842894280,20.8,231.16,231.12,33.7]
[1759842894578,11.56647521,231.15,231.13,30.66]
[1759842894880,0.69,231.14,231.13,30.66]
[1759842895877,10.87647521,231.15,231.13,30.66]
[1759842896056,5.01638227,231.14,231.13,30.66]
[1759842899258,4.32638227,231.14,231.13,30.66]
[1759842900761,5.01638227,231.14,231.13,30.66]
[1759842902488,4.32638227,231.14,231.13,30.66]
[1759842903388,5.01638227,231.14,231.13,30.66]
[1759842903689,4.32638227,231.14,231.13,30.66]
[1759842903886,4.32581491,231.18,231.13,30.66]
[1759842904301,13.57591688,231.17,231.13,30.66]
[1759842904586,10.87647521,231.15,231.13,30.66]
[1759842904887,5.01638227,231.14,231.13,30.66]
[1759842905099,15.89285748,231.14,231.13,30.66]
[1759842906273,17.90229915,231.14,231.13,30.66]
[1759842908492,15.89285748,231.14,231.13,30.66]
[1759842909176,18.14937601,231.14,231.13,30.66]
[1759842910490,17.45937601,231.14,231.13,30.66]
[1759842910702,18.14937601,231.14,231.13,30.66]
[1759842912189,4.32413733,231.26,231.13,30.66]
[1759842912398,20.8,231.25,231.13,30.66]
[1759842912697,20.8,231.23,231.13,30.66]
[1759842913693,0.69,231.22,231.13,30.66]
[1759842914094,5.01500016,231.22,231.13,30.66]
[1759842914780,11.56647521,231.21,231.13,30.66]
[1759842914998,10.87647521,231.19,231.13,30.66]
[1759842915167,11.56647521,231.19,231.13,30.66]
[1759842916002,4.32582082,231.17,231.13,30.66]
[1759842916189,0.69,231.16,231.13,30.66]
[1759842917405,0.69,231.15,231.13,30.66]
[1759842917706,21.49,231.14,231.13,30.66]
[1759842918095,25.12638227,231.14,231.13,30.66]
[1759842918299,25.81638227,231.14,231.13,30.66]
[1759842918517,36.69285748,231.14,231.13,30.66]
[1759842918813,38.70229915,231.14,231.13,30.66]
[1759842919799,36.69285748,231.14,231.13,30.66]
[1759842920112,38.70229915,231.14,231.13,30.66]
[1759842922701,38.70229915,231.14,230.97,0.2]
[1759842922702,10.87647521,231.09,231.03,30.7]
[1759842922909,10.87647521,231.07,231.03,30.7]
[1759842923218,11.56647521,231.07,231.03,30.7]
[1759842924299,4.3278802,231.06,231.03,30.7]
[1759842925201,31.67647521,231.04,231.03,30.7]
[1759842925403,32.37647521,231.04,231.03,30.7]
[1759842926307,36.70473005,231.04,231.03,30.7]
[1759842926713,36.00473005,231.04,231.03,30.7]
[1759842927693,36.70473005,231.04,231.03,30.7]
[1759842930822,20.8,231.0,230.97,0.2]
[1759842931026,10.87647521,230.99,230.97,0.2]
[1759842931198,11.57647521,230.99,230.97,0.2]
[1759842931528,0.7,230.98,230.97,0.2]
[1759842931927,14.72199752,230.98,230.97,0.2]
[1759842932221,11.57647521,230.98,230.97,0.2]
[1759842932609,15.90585437,230.98,230.97,0.2]
[1759842934825,10.87647521,230.98,230.97,0.2]
[1759842935024,15.20574266,230.99,230.97,0.2]
[1759842935923,11.57647521,230.98,230.97,0.2]
[1759842936702,15.90585437,230.98,230.97,0.2]
[1759842936926,15.20585437,230.98,230.97,0.2]
[1759842937426,15.90585437,230.98,230.97,0.2]
[1759842942805,18.16408083,230.98,230.97,0.2]
[1759842946008,18.16408083,230.98,230.97,1e-08]
[1759842948519,31.67647521,230.96,230.95,0.2]
[1759842948732,34.82199752,230.96,230.95,0.2]
[1759842948934,35.54199752,230.96,230.95,0.2]
[1759842949637,39.87175158,230.96,230.95,0.2]
[1759842950218,39.87175158,230.96,230.95,1e-08]
[1759842963546,70.53175158,230.96,230.95,1e-08]
[1759842963738,10.87647521,230.87,230.86,0.2]
[1759842963933,14.02199752,230.87,230.86,0.2]
[1759842964133,14.74199752,230.87,230.86,0.2]
[1759842964367,39.87343945,230.87,230.86,1e-08]
[1759842965246,19.07343945,230.87,230.86,1e-08]
[1759842965450,15.92791714,230.87,230.86,1e-08]
[1759842966155,20.8,230.84,230.79,10.82]
[1759842966340,15.20941857,230.79,230.71,33.94]
[1759842966655,15.20941857,230.79,230.72,30.68]
[1759842967264,39.87494088,230.79,230.72,30.68]
[1759842967460,19.07494088,230.79,230.72,30.68]
[1759842968037,15.20941857,230.79,230.72,30.68]
[1759842968240,18.35494088,230.79,230.72,30.68]
[1759842969337,39.87494088,230.79,230.72,30.68]
[1759842969638,15.92941857,230.79,230.78,1e-08]
[1759842969845,39.15494088,230.79,230.78,1e-08]
[1759842970039,15.20941857,230.79,230.78,1e-08]
[1759842971448,10.87647521,230.79,230.78,1e-08]
[1759842971764,15.20941857,230.79,230.78,1e-08]
[1759842972442,10.87647521,230.84,230.78,1e-08]
[1759842972638,26.03849218,230.84,230.78,1e-08]
[1759842972843,10.87647521,230.82,230.78,1e-08]
[1759842973069,20.8,230.81,230.78,1e-08]
[1759842973366,31.67647521,230.79,230.78,1e-08]
[1759842973668,36.00941857,230.79,230.78,1e-08]
[1759842973868,39.87494088,230.79,230.78,1e-08]
[1759842974642,36.72941857,230.79,230.78,1e-08]
[1759842974869,39.87494088,230.79,230.78,1e-08]
[1759842979269,28.99846567,230.79,230.78,1e-08]
[1759842980569,39.87494088,230.79,230.78,1e-08]
[1759842980758,36.72941857,230.79,230.78,1e-08]
[1759842980951,39.87494088,230.79,230.78,1e-08]
[1759842982278,36.72941857,230.79,230.78,1e-08]
[1759842982468,39.87494088,230.79,230.78,1e-08]
[1759842982650,28.99846567,230.79,230.78,1e-08]
[1759842982851,39.87494088,230.79,230.78,1e-08]
[1759842985662,36.72941857,230.79,230.78,1e-08]
[1759842986182,39.87494088,230.79,230.78,1e-08]
[1759842986852,15.20941857,230.79,230.78,1e-08]
[1759842988354,36.00941857,230.79,230.78,1e-08]
[1759842989502,15.20941857,230.79,230.78,1e-08]
[1759842989651,4.33261027,230.81,230.78,1e-08]
[1759842989855,4.33261027,230.81,230.79,30.66]
[1759842990674,31.67647521,230.8,230.78,1e-08]
[1759842990876,31.67647521,230.8,230.79,30.66]
[1759842991861,36.00923084,230.8,230.79,30.66]
[1759842993063,36.69923084,230.8,230.79,30.66]
[1759842993583,38.71664372,230.8,230.79,30.66]
[1759842993878,2.25989369,230.83,230.79,30.66]
[1759842994058,6.59212908,230.83,230.79,30.66]
[1759842994254,2.25989369,230.83,230.79,30.66]
[1759842994471,6.59214808,230.83,230.79,30.66]
[1759842994787,6.59214808,230.83,230.8,30.68]
[1759842996976,2.25989369,230.83,230.8,30.68]
[1759842997989,6.5920961,230.83,230.8,30.68]
[1759842998684,10.87647521,230.82,230.78,1e-08]
[1759842998885,11.56647521,230.82,230.79,30.66]
[1759842999068,4.33256791,230.81,230.79,30.66]
[1759842999587,10.87647521,230.8,230.79,30.66]
[1759842999996,11.56647521,230.8,230.78,1e-08]
[1759843000160,34.38388809,230.79,230.78,1e-08]
[1759843000365,32.36647521,230.79,230.78,30.66000001]
[1759843001265,36.00941857,230.79,230.78,30.66000001]
[1759843001565,4.33294336,230.79,230.78,30.66000001]
[1759843002880,10.83141978,230.81,230.78,30.66000001]
[1759843003684,13.0912113,230.81,230.78,30.66000001]
[1759843003874,2.25979152,230.81,230.78,30.66000001]
[1759843005190,4.33219252,230.83,230.78,30.66000001]
[1759843007998,15.16267382,230.83,230.78,30.66000001]
[1759843008382,15.85267382,230.83,230.78,30.66000001]
[1759843008579,11.56647521,230.82,230.78,1e-08]
[1759843008774,11.56647521,230.82,230.79,30.64]
[1759843009779,4.33256791,230.81,230.79,30.64]
[1759843010394,26.0404629,230.81,230.8,30.62]
[1759843011595,10.87647521,230.81,230.8,30.62]
[1759843011787,2.25950372,230.84,230.8,30.62]
[1759843012176,4.33184006,230.85,230.8,30.62]
[1759843013281,15.20791714,230.87,230.8,30.62]
[1759843013589,2.25916161,230.88,230.8,30.62]
[1759843014690,6.59052509,230.88,230.8,30.62]
[1759843017499,2.25886107,230.91,230.83,20.8]
[1759843017871,4.33012112,230.95,230.83,20.8]
[1759843018179,6.58786682,230.97,230.83,20.8]
[1759843018383,17.41178334,230.97,230.83,20.8]
[1759843019296,6.58786682,230.97,230.84,20.8]
[1759843020188,6.58786682,230.97,230.84,24.20148579]
[1759843020389,0.68,230.96,230.84,20.8]
[1759843020588,0.68,230.96,230.85,30.62]
[1759843022006,4.32994154,230.95,230.85,30.62]
[1759843022184,5.00994154,230.95,230.85,30.62]
[1759843022380,0.68,230.94,230.86,30.62]
[1759843022702,0.68,230.94,230.87,30.62]
[1759843023406,2.25830021,230.97,230.87,30.62]
[1759843023585,28.06788799,230.97,230.87,30.62]
[1759843024697,38.89180451,230.97,230.87,30.62]
[1759843025005,17.41180451,230.97,230.87,30.62]
[1759843025206,2.25830021,230.97,230.87,30.62]
[1759843025409,10.82256349,231.0,230.9,20.8]
[1759843025904,4.32919173,230.99,230.9,20.8]
[1759843026405,2.25780202,231.01,230.9,20.8]
[1759843026709,4.32825484,231.04,230.9,20.8]
[1759843027196,15.14889195,231.04,230.9,20.8]
[1759843028397,0.68,231.03,230.85,15.9946395]
[1759843028594,0.68,231.02,230.89,20.8]
[1759843028798,0.68,231.01,230.89,20.8]
[1759843030314,0.68,231.01,230.89,20.8]
[1759843030615,15.14889195,231.04,230.9,20.8]
[1759843030916,10.82063711,231.04,230.9,20.8]
[1759843031429,2.25737703,231.06,230.94,20.8]
[1759843031595,4.42769462,231.07,230.98,20.8]
[1759843033018,0.1,231.07,230.98,20.8]
[1759843033699,4.42769404,231.07,230.98,20.8]
[1759843034314,5.10769404,231.07,230.98,20.8]
[1759843035802,4.42769404,231.07,230.98,20.8]
[1759843038221,0.1,231.07,230.98,20.8]
[1759843040416,4.42773966,231.07,230.98,20.8]
[1759843040719,5.10773966,231.07,230.98,20.8]
[1759843042315,5.10773966,231.07,230.99,30.6]
[1759843043836,4.42773966,231.07,230.99,30.6]
[1759843043993,0.1,231.07,230.99,30.6]
[1759843044197,0.1,231.07,231.02,20.8]
[1759843045042,0.1,231.07,230.99,30.6]
[1759843045202,0.71,231.06,230.99,30.6]
[1759843046229,5.03794825,231.06,230.99,30.6]
[1759843047036,0.71,231.05,230.99,30.6]
[1759843048211,4.32825484,231.04,230.99,30.6]
[1759843048413,0.71,231.03,230.99,30.6]
[1759843048732,4.32792619,231.06,230.99,30.6]
[1759843048916,0.71,231.03,230.99,30.6]
[1759843049723,0.71,231.05,230.99,30.6]
[1759843050229,4.32825484,231.04,230.99,30.6]
[1759843050725,11.68647521,231.07,230.99,30.6]
[1759843051403,5.0378802,231.06,230.99,30.6]
[1759843051910,4.3278802,231.06,230.99,30.6]
[1759843052121,0.71,231.05,230.99,30.6]
[1759843052324,4.32825484,231.04,230.99,30.6]
[1759843052624,5.03825484,231.04,230.99,30.6]
[1759843052832,4.32825484,231.04,230.99,30.6]
[1759843054515,15.30435192,231.07,230.99,30.6]
[1759843054937,16.01435192,231.07,230.99,30.6]
[1759843055141,0.1,231.07,230.99,51.4]
[1759843055519,0.1,231.07,231.02,20.8]
[1759843066848,0.1,231.07,231.06,20.8]
[1759843067048,0.1,231.07,231.06,51.38]
[1759843068550,0.1,231.07,231.06,30.58]
[1759843068744,5.10774447,231.07,231.03,54.52]
[1759843068953,0.68,231.06,231.04,30.58]
[1759843069155,0.68,231.05,231.03,33.72]
[1759843069341,4.32796332,231.06,231.04,30.58]
[1759843069838,0.68,231.05,231.04,30.58]
[1759843071336,5.00806751,231.05,231.04,30.58]
[1759843073560,5.00806751,231.05,231.03,33.72]
[1759843073757,4.3278802,231.06,231.04,30.58]
[1759843074342,0.71,231.05,231.04,30.58]
[1759843075045,0.71,231.05,231.03,33.72]
[1759843075238,18.29149222,231.06,231.04,30.58]
[1759843075758,5.03806751,231.05,231.04,30.58]
[1759843076557,0.1,231.07,231.04,30.58]
[1759843078147,4.42770055,231.07,231.04,30.58]
[1759843078861,0.71,231.06,231.04,30.58]
[1759843079058,0.71,231.05,231.04,30.58]
[1759843079360,15.24693281,231.07,231.04,30.58]
[1759843079556,0.71,231.06,231.04,30.58]
[1759843079968,0.71,231.05,231.04,30.58]
[1759843081052,5.03806751,231.05,231.04,30.58]
[1759843083564,5.03806751,231.05,231.03,33.72]
[1759843083746,0.71,231.04,231.03,33.72]
[1759843083947,0.71,231.04,231.03,64.3]
[1759843085685,5.03825484,231.04,231.03,64.3]
[1759843086045,5.03825484,231.04,231.03,30.58]
[1759843089182,4.32825484,231.04,231.03,30.58]
[1759843090183,4.32806751,231.05,231.03,30.58]
[1759843090578,4.42774718,231.07,231.03,30.58]
[1759843091783,4.42774718,231.07,231.04,30.58]
[1759843092164,0.1,231.07,231.04,30.58]
[1759843092973,4.42769659,231.07,231.04,30.58]
[1759843093775,3.85391151,231.06,230.99,33.72]
[1759843093956,11.58647521,231.05,231.0,30.58]
[1759843094151,4.32844219,231.03,231.01,30.58]
[1759843094357,0.71,231.02,230.99,33.72]
[1759843094561,0.71,231.01,230.99,33.72]
[1759843094779,0.71,231.0,230.99,33.72]
[1759843094957,0.71,231.02,230.99,64.3]
[1759843095158,15.14954767,231.03,230.99,64.3]
[1759843095359,15.85954767,231.03,230.99,64.3]
[1759843095667,0.71,231.02,230.99,64.3]
[1759843096281,0.71,231.01,230.99,64.3]
[1759843096484,0.71,231.0,230.99,64.3]
[1759843096778,0.71,231.0,230.99,33.72]
[1759843097190,0.71,231.0,230.99,64.3]
[1759843098273,5.03900432,231.0,230.99,64.3]
[1759843098581,5.03900432,231.0,230.99,33.72]
[1759843098798,5.03900432,231.0,230.99,64.3]
[1759843099359,4.32842308,231.04,230.99,64.3]
[1759843099768,0.71,231.03,230.99,64.3]
[1759843099980,0.71,231.02,230.99,64.3]
[1759843100477,4.32881693,231.01,230.99,30.58]
[1759843101973,0.71,231.01,230.99,30.58]
[1759843102170,15.14889195,231.04,230.99,30.58]
[1759843102371,0.71,231.0,230.93,33.72]
[1759843102570,0.71,231.0,230.94,30.58]
[1759843104499,4.32919173,230.99,230.94,30.58]
[1759843105904,20.8,231.03,230.94,30.58]
[1759843106277,15.15020343,231.02,230.94,30.58]
[1759843107374,4.32862955,231.02,230.94,30.58]
[1759843107603,4.32825484,231.04,230.94,30.58]
[1759843107781,4.32825484,231.04,230.97,20.8]
[1759843108100,4.32825484,231.04,230.98,30.58]
[1759843108786,4.32806751,231.05,230.98,30.58]
[1759843109204,4.32806751,231.05,230.96,20.8]
[1759843109397,4.32806751,231.05,230.99,30.58]
[1759843110209,0.72,231.04,230.96,20.8]
[1759843110388,0.72,231.04,230.97,30.58]
[1759843111114,4.32844219,231.03,230.97,30.58]
[1759843112501,4.3278802,231.06,231.0,20.8]
[1759843112701,4.3278802,231.06,231.01,30.56]
[1759843113077,0.1,231.07,231.01,30.56]
[1759843113285,0.1,231.07,231.04,20.8]
[1759843113476,0.1,231.07,231.05,30.56]
[1759843115109,0.1,231.07,231.04,20.8]
[1759843115287,0.72,231.06,231.05,30.56]
[1759843117790,5.0478802,231.06,231.05,30.56]
[1759843117994,0.1,231.07,231.05,30.56]
[1759843129402,0.1,231.07,231.06,20.8]
[1759843129721,0.1,231.07,231.06,51.36]
[1759843130604,0.1,231.07,231.06,20.8]
[1759843130804,0.1,231.07,231.06,51.36]
[1759843131625,0.1,231.07,231.06,20.8]
[1759843131811,0.79,231.07,231.06,51.36]
[1759843132018,0.79,231.07,231.06,30.56]
[1759843132919,0.1,231.07,231.06,30.56]
[1759843133607,0.1,231.07,231.06,34.88694804]
[1759843138424,0.1,231.07,231.06,4.32694804]
[1759843138626,0.1,231.07,231.06,34.86694804]
[1759843139720,4.32718877,231.1,231.06,34.86694804]
[1759843140642,10.81660914,231.13,231.06,34.86694804]
[1759843141123,10.81660914,231.13,231.06,4.32694804]
[1759843141325,10.81660914,231.13,231.07,30.54]
[1759843141627,0.66,231.12,231.07,30.54]
[1759843141828,0.66,231.11,231.07,30.54]
[1759843142024,0.66,231.1,231.07,30.54]
[1759843142347,0.66,231.09,231.07,30.54]
[1759843142848,0.66,231.08,231.07,30.54]
[1759843143235,0.66,231.08,231.03,33.72]
[1759843143429,2.01164056,231.05,230.99,12.98785635]
[1759843143620,0.66,231.04,231.0,22.68]
[1759843143825,0.66,231.03,231.0,22.68]
[1759843144322,0.66,231.02,231.0,22.68]
[1759843144529,0.66,231.05,231.0,22.68]
[1759843144736,0.66,231.04,231.0,22.68]
[1759843145317,0.66,231.08,231.0,22.68]
[1759843145543,0.66,231.08,231.0,23.09]
[1759843146134,0.66,231.07,231.0,22.68]
[1759843146445,15.14561426,231.09,231.0,22.68]
[1759843146446,0.66,231.06,231.0,22.68]
[1759843146633,4.98788021,231.06,231.0,22.68]
[1759843147143,0.66,231.06,231.0,22.68]
[1759843147327,4.9879155,231.06,231.0,22.68]
[1759843149545,0.66,231.08,231.0,23.09]
[1759843150046,0.66,231.07,231.01,10.8182959]
[1759843150417,6.58429608,231.1,231.01,10.8182959]
[1759843150630,0.66,231.07,231.01,10.8182959]
[1759843151250,0.66,231.06,231.01,10.8182959]
[1759843151544,0.66,231.05,231.02,30.54]
[1759843153356,4.32756875,231.08,231.02,30.54]
[1759843153528,4.98730049,231.1,231.02,30.95]
[1759843153857,4.32730049,231.1,231.02,30.95]
[1759843154032,0.66,231.09,231.02,30.95]
[1759843155464,20.8,231.14,231.02,30.95]
[1759843155465,3.71955313,231.31,231.06,10.87647521]
[1759843155757,0.1,231.31,231.22,10.87647521]
[1759843155929,0.1,231.31,231.24,20.8]
[1759843156126,3.99310328,231.33,231.24,23.95895923]
[1759843156357,3.99310328,231.33,231.25,3.15895923]
[1759843156535,3.99310328,231.33,231.26,3.15895923]
[1759843156735,3.99310328,231.33,231.27,34.21895923]
[1759843156934,3.99310328,231.33,231.28,3.15895923]
[1759843157154,3.99310328,231.33,231.29,3.15895923]
[1759843157334,6.67699494,231.35,231.3,34.19895923]
[1759843157534,6.67699494,231.35,231.31,34.19895923]
[1759843157732,2.35446454,231.35,231.32,3.15895923]
[1759843157936,2.35446454,231.35,231.33,3.15895923]
[1759843158161,2.35446454,231.35,231.34,3.15895923]
[1759843158546,2.35446454,231.35,231.31,31.04]
[1759843158742,6.67694679,231.35,231.31,31.04]
[1759843158945,0.1,231.35,231.31,31.04]
[1759843159375,0.1,231.35,231.31,31.7]
[1759843159737,0.1,231.35,231.32,31.02]
[1759843160056,0.1,231.35,231.33,31.02]
[1759843160233,0.1,231.35,231.29,20.8]
[1759843160443,0.1,231.35,231.3,31.02]
[1759843160669,0.1,231.35,231.29,20.8]
[1759843160962,0.1,231.35,231.3,5.36861381]
[1759843161170,4.42246961,231.35,231.31,34.01451399]
[1759843161346,0.66,231.34,231.32,3.01451399]
[1759843161547,15.22860749,231.35,231.33,3.01451399]
[1759843161737,15.22860749,231.35,231.34,2.29451399]
[1759843161938,15.88860749,231.35,231.34,15.57451399]
[1759843162157,17.90024805,231.35,231.34,15.57451399]
[1759843162335,28.77672326,231.35,231.34,15.57451399]
[1759843162535,26.7650827,231.35,231.34,1.57451399]
[1759843162852,10.87647521,231.34,231.24,12.97605917]
[1759843163054,0.66,231.33,231.25,26.06]
[1759843163545,0.66,231.33,231.23,0.68]
[1759843163747,15.13055506,231.32,231.26,31.02]
[1759843164257,0.72,231.31,231.27,31.02]
[1759843164462,15.13055506,231.32,231.28,31.02]
[1759843164463,0.72,231.3,231.28,31.02]
[1759843164666,15.13055506,231.32,231.29,31.02]
[1759843164881,2.01164056,231.31,231.22,33.7]
[1759843165166,2.01164056,231.3,231.23,31.02]
[1759843165370,2.73164056,231.3,231.23,31.02]
[1759843165545,0.72,231.3,231.23,31.02]
[1759843165870,2.73164056,231.29,231.22,33.7]
[1759843166056,0.72,231.29,231.23,31.02]
[1759843168042,15.1331719,231.28,231.24,30.98]
[1759843168661,15.1331719,231.28,231.22,33.7]
[1759843168973,15.8531719,231.28,231.22,33.7]
[1759843169160,15.8531719,231.28,231.23,30.98]
[1759843169583,0.72,231.27,231.23,30.98]
[1759843169769,0.72,231.26,231.22,33.7]
[1759843169971,15.13513513,231.25,231.22,33.7]
[1759843170162,0.72,231.24,231.23,30.96]
[1759843170368,17.14677569,231.25,231.23,30.96]